fUSD/lending_fUSD_20240910
["ID","MTS","AMOUNT","RATE_DAILY","PERIOD"]
[337663809,1725929443039,-500.0,0.00012683,2]
[337663810,1725929443048,-500.0,0.00012683,2]
[337663811,1725929443058,-3178.96,0.00012683,2]
[337663812,1725929443067,-500.0,0.00012683,2]
[337663814,1725929443076,-1367.85,0.00012683,2]
[337663815,1725929443086,-5478.99,0.00012683,2]
[337663816,1725929443096,-3677.49,0.00012683,2]
[337663817,1725929443105,-8134.15,0.00012683,2]
[337663818,1725929443114,-1753.89,0.00012683,2]
[337663820,1725929443124,-798.82,0.00012683,2]
[337663821,1725929443133,-4492.19,0.00012683,2]
[337663822,1725929443143,-500.0,0.00012683,2]
[337663823,1725929443153,-555.86,0.00012683,2]
[337663824,1725929443163,-4389.8,0.00012683,2]
[337663825,1725929443173,-15003.9,0.00012683,2]
[337663826,1725929443183,-500.0,0.00012683,2]
[337663827,1725929443192,-500.0,0.00012683,2]
[337663828,1725929443202,-2508.9,0.00012683,2]
[337663829,1725929443211,-500.0,0.00012683,2]
[337663830,1725929443220,-883.6,0.00012683,2]
[337663831,1725929443230,-500.0,0.00012683,2]
[337663832,1725929443239,-500.0,0.00012683,2]
[337663833,1725929443249,-8396.88,0.00012683,2]
[337663834,1725929443258,-500.0,0.00012683,2]
[337663835,1725929443268,-4159.86,0.00012683,2]
[337663836,1725929443277,-5189.81,0.00012683,2]
[337663837,1725929443287,-500.0,0.00012683,2]
[337663838,1725929443297,-500.0,0.00012683,2]
[337663839,1725929443306,-681.51,0.00012683,2]
[337663840,1725929443315,-500.0,0.00012683,2]
[337663841,1725929443324,-30961.74,0.00012683,2]
[337663842,1725929443334,-9350.87,0.00012683,2]
[337663843,1725929443343,-500.0000005,0.00012683,2]
[337663844,1725929443353,-500.0,0.00012683,2]
[337663845,1725929443362,-500.0,0.00012683,2]
[337663846,1725929443371,-4065.45,0.00012683,2]
[337663847,1725929443380,-7277.95424312,0.00012683,2]
[337663850,1725929445854,-435.93874686,0.00012683,2]
[337663851,1725929446127,-1907.53700542,0.00012683,2]
[337663852,1725929446139,-386.34,0.00012683,2]
[337663853,1725929594929,516.04,9.732e-05,2]
[337663854,1725929595323,516.04,0.00011996,2]
[337663855,1725929635116,1916.54,0.00011636,2]
[337663856,1725929657241,213.81,0.00011642,2]
[337663857,1725929657265,626.19,0.00011642,2]
[337663858,1725929698608,241.79,0.00011642,2]
[337663859,1725929749071,750.0,0.00011,2]
[337663860,1725929835910,162.56,0.00011621,2]
[337663861,1725929850759,313.16,0.00010959,2]
[337663862,1725929871001,158.03,0.00011627,2]
[337663863,1725929871248,158.03,0.00011631,2]
[337663864,1725929871648,158.03,0.00011634,2]
[337663865,1725929871869,158.03,0.00011637,2]
[337663866,1725929872123,158.03,0.00011641,2]
[337663867,1725929872344,158.03,0.00011644,2]
[337663868,1725929872585,158.03,0.00011648,2]
[337663869,1725929872810,158.03,0.00011651,2]
[337663870,1725929873674,158.03,0.00011655,2]
[337663871,1725929873730,158.03,0.00011658,2]
[337663872,1725929873775,158.03,0.00011661,2]
[337663873,1725929873870,158.03,0.00011665,2]
[337663874,1725929874103,158.03,0.00011668,2]
[337663875,1725929874307,158.03,0.00011672,2]
[337663876,1725929874536,158.03,0.00011675,2]
[337663877,1725929874783,158.03,0.00011678,2]
[337663878,1725929875045,158.03,0.00011682,2]
[337663879,1725929875452,158.03,0.00011685,2]
[337663880,1725929913759,213.81,0.00011627,2]
[337663882,1725929970775,250.0,0.00011632,2]
[337663884,1725930014720,250.0,0.00011625,2]
[337663885,1725930079844,664.72768666,0.00014,120]
[337663886,1725930185981,328.0,0.00011616,2]
[337663887,1725930204594,241.8,0.00011614,2]
[337663889,1725930302580,150.0,0.00011688,2]
[337663890,1725930302904,150.0,0.00011774,2]
[337663891,1725930303389,150.0,0.00011861,2]
[337663892,1725930303689,150.0,0.00011947,2]
[337663893,1725930310559,150.0,0.00011688,2]
[337663895,1725930318932,150.0,0.00011688,2]
[337663896,1725930319250,150.0,0.00011873,2]
[337663897,1725930328631,150.0,0.00011688,2]
[337663898,1725930332032,150.0,0.00011688,2]
[337663899,1725930335015,464.43,9.666e-05,2]
[337663900,1725930335300,464.43,0.0001193,2]
[337663901,1725930337916,150.0,0.00011688,2]
[337663902,1725930370415,152.87,0.00010959,2]
[337663903,1725930495418,250.0,0.0001156,2]
[337663905,1725930521558,-150.0,0.00012034,2]
[337663907,1725930521592,-150.0,0.00012059,2]
[337663909,1725930521625,-180.97641428,0.00012107,2]
[337663911,1725930521659,-150.0,0.00012121,2]
[337663912,1725930521692,-150.0,0.00012207,2]
[337663913,1725930521724,-150.0,0.00012244,2]
[337663914,1725930521757,-150.0,0.00012294,2]
[337663915,1725930521790,-184.4027821,0.000123,4]
[337663921,1725930631933,-415.5972179,0.000123,4]
[337663922,1725930631943,-150.0,0.00012337,2]
[337663923,1725930631952,-121.8568502,0.0001238,2]
[337663924,1725930631964,-28.1431498,0.0001238,2]
[337663925,1725930631973,-871.8568502,0.000124,4]
[337663926,1725930631985,-328.1431498,0.000124,4]
[337663927,1725930631994,-1.46562757,0.00012416,2]
[337663928,1725930632006,-192.71261572,0.00012416,2]
[337663929,1725930632015,-119.30838022,0.0001243,2]
[337663930,1725930632027,-30.69161978,0.0001243,2]
[337663931,1725930632036,-150.0,0.00012467,2]
[337663932,1725930632046,-294.9103576,0.00012478,2]
[337663933,1725930632055,-150.0,0.00012482,2]
[337663934,1725930632065,-150.0,0.00012484,2]
[337663935,1725930632074,-40.45380983,0.00012485,2]
[337663936,1725930632115,-2864.07599017,0.00012485,2]
[337663937,1725930632124,-1979.5173,0.00012486,2]
[337663938,1725930632135,-1900.0,0.000125,4]
[337663939,1725930632145,-150.0,0.00012511,2]
[337663940,1725930632154,-300.0,0.00012518,2]
[337663941,1725930632164,-1273.49002901,0.0001252,2]
[337663942,1725930632173,-150.0,0.00012544,2]
[337663943,1725930632182,-150.0,0.00012553,2]
[337663944,1725930632194,-150.0,0.00012556,2]
[337663945,1725930632204,-1079.23601734,0.00012579,2]
[337663946,1725930632216,-3283.6991,0.0001258,2]
[337663947,1725930632228,-169.5838256,0.0001258,2]
[337663949,1725930632239,-329.17987969,0.0001258,2]
[337663951,1725930632250,-2008.9436914,0.00012581,2]
[337663953,1725930632261,-288.38969812,0.00012585,2]
[337663955,1725930632272,-162.63958295,0.0001259,2]
[337663973,1725930638046,-856.82541705,0.0001259,2]
[337663974,1725930638056,-1500.0,0.00012599,2]
[337663975,1725930638066,-68.17458294,0.00012599,2]
[337663976,1725930638078,-81.82541706,0.00012599,2]
[337663977,1725930638087,-5042.91700357,0.000126,2]
[337663978,1725930638219,-827.3509882,0.000126,2]
[337664080,1725930639999,-4080.10040684,0.000126,2]
[337664109,1725930640366,-416.17978644,0.000126,2]
[337664110,1725930640483,-2569.09003,0.000126,2]
[337664111,1725930640516,-5583.82383543,0.000126,2]
[337664139,1725930643046,-2136.25711452,0.000126,2]
[337664140,1725930643058,-427.61,0.000126,2]
[337664141,1725930643068,-150.0,0.000126,2]
[337664142,1725930643078,-713.31,0.000126,2]
[337664143,1725930643088,-150.0,0.000126,2]
[337664144,1725930643099,-427.61,0.000126,2]
[337664145,1725930643109,-150.0,0.000126,2]
[337664146,1725930643119,-150.0,0.000126,2]
[337664147,1725930643130,-150.0,0.000126,2]
[337664148,1725930643140,-427.61,0.000126,2]
[337664149,1725930643150,-425.29,0.000126,2]
[337664150,1725930643161,-427.61,0.000126,2]
[337664151,1725930643171,-150.0,0.000126,2]
[337664152,1725930643182,-150.0,0.000126,2]
[337664153,1725930643192,-150.0,0.000126,2]
[337664154,1725930643202,-667.97,0.000126,2]
[337664155,1725930643212,-357.54,0.000126,2]
[337664156,1725930643224,-357.54,0.000126,2]
[337664157,1725930643235,-150.0,0.000126,2]
[337664158,1725930643245,-427.61,0.000126,2]
[337664159,1725930643260,-150.0,0.000126,2]
[337664160,1725930643271,-427.31,0.000126,2]
[337664161,1725930643282,-150.0,0.000126,2]
[337664162,1725930643292,-150.0,0.000126,2]
[337664163,1725930643304,-357.3,0.000126,2]
[337664164,1725930643314,-2187.56896818,0.000126,4]
[337664165,1725930643328,-312.43103182,0.000126,4]
[337664166,1725930643338,-1819.0,0.000126,2]
[337664168,1725930643348,-150.0,0.00012604,2]
[337664169,1725930643359,-150.0,0.00012611,2]
[337664170,1725930643369,-150.0,0.00012615,2]
[337664171,1725930643380,-1500.0,0.00012621,2]
[337664172,1725930643390,-1500.0,0.00012622,2]
[337664173,1725930643401,-150.0,0.0001264,2]
[337664174,1725930643411,-622.180986,0.00012646,2]
[337664175,1725930643421,-150.0,0.00012659,2]
[337664176,1725930643431,-1019.465,0.0001267,2]
[337664177,1725930643442,-160.52,0.0001267,2]
[337664178,1725930643452,-500.0,0.00012673,2]
[337664179,1725930643462,-2000.0,0.00012678,3]
[337664180,1725930643473,-7968.22,0.00012678,2]
[337664181,1725930643484,-8530.78,0.00012678,2]
[337664182,1725930643494,-6641.85,0.00012678,2]
[337664183,1725930643505,-500.0,0.00012678,2]
[337664184,1725930643515,-5953.38,0.00012678,2]
[337664185,1725930643525,-1427.38,0.00012678,2]
[337664186,1725930643536,-6107.03,0.00012678,2]
[337664187,1725930643546,-500.0,0.00012678,2]
[337664188,1725930643555,-500.0,0.00012678,2]
[337664189,1725930643566,-3393.95,0.00012678,2]
[337664190,1725930643576,-2816.33,0.00012678,2]
[337664191,1725930643586,-2453.07,0.00012678,2]
[337664192,1725930643596,-8692.46,0.00012679,2]
[337664193,1725930643606,-15044.35,0.00012679,2]
[337664194,1725930643617,-2356.45,0.00012679,2]
[337664195,1725930643626,-1029.89,0.00012679,2]
[337664196,1725930643637,-6526.09,0.00012679,2]
[337664197,1725930643655,-13477.34,0.00012679,2]
[337664198,1725930643666,-500.0,0.00012679,2]
[337664199,1725930643676,-2516.67,0.00012679,2]
[337664200,1725930643686,-3677.49,0.00012679,2]
[337664201,1725930643699,-1367.85,0.00012679,2]
[337664202,1725930643710,-1753.89,0.00012679,2]
[337664203,1725930643719,-5478.99,0.00012679,2]
[337664204,1725930643730,-4492.19,0.00012679,2]
[337664205,1725930643741,-8134.15,0.00012679,2]
[337664206,1725930643752,-5670.3,0.00012679,2]
[337664207,1725930643762,-6426.51,0.00012679,2]
[337664208,1725930643773,-1506.27,0.00012679,2]
[337664209,1725930643783,-2875.68,0.00012679,2]
[337664210,1725930643794,-2508.9,0.00012679,2]
[337664211,1725930643805,-4389.8,0.00012679,2]
[337664212,1725930643815,-6972.35,0.00012679,2]
[337664213,1725930643825,-4159.86,0.00012679,2]
[337664214,1725930643836,-15003.9,0.00012679,2]
[337664215,1725930643846,-5935.01,0.00012679,2]
[337664216,1725930643857,-500.0,0.00012679,2]
[337664217,1725930643867,-227.15516438,0.00012679,2]
[337664238,1725930646069,-5263.2163794,0.00012679,2]
[337664244,1725930646133,-3860.49845622,0.00012679,2]
[337664246,1725930646143,-8396.88,0.00012679,2]
[337664248,1725930646153,-21820.49,0.00012679,2]
[337664250,1725930646164,-6504.73,0.00012679,2]
[337664252,1725930646174,-5189.81,0.00012679,2]
[337664253,1725930646183,-30961.74,0.00012679,2]
[337664255,1725930646194,-6735.5318291,0.00012679,2]
[337664257,1725930646206,-980.18249376,0.00012679,2]
[337664303,1725930675390,737.6,0.00011644,2]
[337664307,1725930826882,468.1,9.64e-05,2]
[337664308,1725930827247,468.1,0.00011903,2]
[337664309,1725930906873,206.56,0.00011556,2]
[337664310,1725930907077,2965.79,0.00011556,2]
[337664311,1725931023186,250.0,0.0001155,2]
[337664312,1725931048087,200.0,0.00011492,2]
[337664320,1725931158149,409.92,0.0001153,2]
[337664321,1725931323542,421.29,9.596e-05,2]
[337664322,1725931323767,421.29,0.0001186,2]
[337664323,1725931364798,155.08,0.00010959,2]
[337664324,1725931485068,234.75,0.00011512,2]
[337664325,1725931505658,150.0,0.00011688,2]
[337664326,1725931508838,150.0,0.00011688,2]
[337664327,1725931519793,150.0,0.00011688,2]
[337664328,1725931532674,150.0,0.00011688,2]
[337664329,1725931539565,250.0,0.00011508,2]
[337664330,1725931562448,517.99692705,0.00011912,2]
[337664331,1725931564628,750.0,0.00011,2]
[337664332,1725931568050,517.99692703,0.00011938,2]
[337664334,1725931572415,517.99692703,0.00011964,2]
[337664341,1725931685728,672.06,0.000115,2]
[337664347,1725931719433,-150.0,0.00012012,2]
[337664349,1725931719465,-150.0,0.00012012,2]
[337664352,1725931719496,-553.3984004,0.00012064,2]
[337664353,1725931719527,-500.0,0.00012164,2]
[337664355,1725931719560,-581.92561666,0.00012164,2]
[337664356,1725931719591,-300.0,0.000122,4]
[337664357,1725931719623,-600.0,0.000123,4]
[337664358,1725931719655,-150.0,0.00012337,2]
[337664359,1725931719688,-150.0,0.00012337,2]
[337664360,1725931719719,-150.0,0.00012337,2]
[337664361,1725931719750,-1958.0,0.000124,2]
[337664362,1725931719781,-585.67317301,0.000124,4]
[337664363,1725931719828,-414.32682699,0.000124,4]
[337664364,1725931719858,-1500.0,0.00012412,2]
[337664365,1725931719890,-150.0,0.00012412,2]
[337664366,1725931719922,-150.0,0.00012429,2]
[337664367,1725931719953,-829.42,0.00012429,2]
[337664368,1725931719984,-1500.0,0.00012434,2]
[337664369,1725931720018,-150.0,0.00012435,2]
[337664370,1725931720048,-442.61,0.00012444,2]
[337664371,1725931720080,-150.0,0.00012445,2]
[337664372,1725931720112,-150.0,0.00012445,2]
[337664373,1725931720143,-200.84439772,0.00012449,2]
[337664376,1725931744418,-1299.15560228,0.00012449,2]
[337664379,1725931744454,-150.0,0.00012455,2]
[337664381,1725931744488,-150.0,0.00012468,2]
[337664382,1725931744523,-300.0,0.00012468,2]
[337664383,1725931744557,-150.0,0.00012469,2]
[337664384,1725931744594,-150.0,0.00012471,2]
[337664385,1725931744627,-150.0,0.00012473,2]
[337664386,1725931744663,-150.0,0.00012474,2]
[337664387,1725931744694,-1500.0,0.00012475,2]
[337664388,1725931744725,-1358.7831,0.00012479,2]
[337664389,1725931744757,-700.38245609,0.00012479,2]
[337664390,1725931744798,-299.61754391,0.00012479,2]
[337664391,1725931744830,-2500.0,0.00012479,2]
[337664392,1725931744864,-150.0,0.00012479,2]
[337664393,1725931744898,-1202.29111707,0.00012479,2]
[337664394,1725931744932,-150.0,0.0001248,2]
[337664395,1725931744965,-824.46,0.00012486,2]
[337664396,1725931744999,-931.95249739,0.00012487,2]
[337664397,1725931745049,-4551.18994051,0.00012487,2]
[337664398,1725931769472,-485.54,0.00012479,2]
[337664399,1725931769505,-329.17987969,0.00012479,2]
[337664400,1725931769538,-1387.5375621,0.00012487,2]
[337664403,1725931769779,-150.0,0.00012491,2]
[337664404,1725931769813,-150.0,0.00012491,2]
[337664405,1725931769845,-150.0,0.00012495,2]
[337664406,1725931769878,-150.0,0.00012495,2]
[337664407,1725931769909,-3589.42036172,0.00012499,2]
[337664408,1725931770302,-3910.57963828,0.00012499,2]
[337664409,1725931770335,-68.1145609,0.00012499,2]
[337664410,1725931794403,-356.12,0.00012164,2]
[337664411,1725931794436,-81.8854391,0.00012499,2]
[337664412,1725931794467,-193.65272694,0.00012499,2]
[337664413,1725931794498,-3497.970885,0.000125,2]
[337664414,1725931794531,-1300.0,0.000125,4]
[337664415,1725931794563,-285.37094896,0.000125,2]
[337664424,1725931832314,-297.25056619,0.00012365,2]
[337664425,1725931832323,-3533.90984176,0.00012497,2]
[337664426,1725931832687,-180.61015824,0.00012497,2]
[337664427,1725931832697,-142.23905104,0.000125,2]
[337664428,1725931832706,-150.0,0.000125,2]
[337664429,1725931832716,-68.16001062,0.000125,2]
[337664430,1725931832729,-81.83998938,0.000125,2]
[337664431,1725931832738,-150.0,0.00012504,2]
[337664432,1725931832748,-367.13185495,0.00012506,2]
[337664433,1725931832758,-261.39657885,0.00012506,2]
[337664434,1725931832771,-792.5901174,0.00012506,2]
[337664435,1725931832783,-78.8814488,0.00012506,2]
[337664436,1725931832793,-1500.0,0.00012513,2]
[337664437,1725931832802,-257.83445057,0.00012522,2]
[337664438,1725931832810,-138.10660063,0.00012525,2]
[337664439,1725931832822,-11.89339937,0.00012525,2]
[337664440,1725931832831,-150.0,0.0001254,2]
[337664441,1725931832841,-150.0,0.00012549,2]
[337664442,1725931832849,-757.72478455,0.0001255,2]
[337664443,1725931832919,-567.14,0.0001255,2]
[337664444,1725931832934,-1675.13521545,0.0001255,2]
[337664445,1725931832943,-150.0,0.00012553,2]
[337664446,1725931832952,-150.0,0.00012553,2]
[337664447,1725931832962,-441.454078,0.00012554,2]
[337664448,1725931832974,-542.67878054,0.00012554,2]
[337664449,1725931832985,-515.86714146,0.00012554,2]
[337664450,1725931832995,-150.0,0.00012556,2]
[337664451,1725931833005,-150.0,0.00012558,2]
[337664452,1725931833014,-150.0,0.00012559,2]
[337664453,1725931833023,-150.0,0.0001256,2]
[337664454,1725931833033,-150.0,0.0001256,2]
[337664455,1725931833043,-160.87,0.00012569,2]
[337664456,1725931833052,-505.86710364,0.00012572,2]
[337664457,1725931833062,-150.0,0.00012577,2]
[337664458,1725931833071,-500.0,0.00012577,2]
[337664459,1725931833080,-2463.21261929,0.00012577,2]
[337664460,1725931833092,-354.78738071,0.00012577,2]
[337664461,1725931833102,-500.0,0.00012577,2]
[337664462,1725931833113,-202.0109282,0.00012578,2]
[337664463,1725931833124,-500.0,0.00012578,2]
[337664464,1725931833135,-231.8393213,0.00012578,2]
[337664465,1725931833146,-517.17807308,0.00012578,2]
[337664466,1725931833156,-307.29302393,0.00012578,2]
[337664467,1725931833168,-542.23333696,0.00012578,2]
[337664471,1725931838270,-500.0,0.00012577,2]
[337664472,1725931838281,-500.0,0.00012577,2]
[337664473,1725931838291,-1029.89,0.00012578,2]
[337664474,1725931838301,-3811.11021091,0.00012578,2]
[337664475,1725931838313,-8161.55232809,0.00012578,2]
[337664476,1725931838325,-1548.71452586,0.00012578,2]
[337664477,1725931838410,-3200.81068033,0.00012578,2]
[337664478,1725931838423,-990.63368508,0.00012578,2]
[337664479,1725931838546,-74525.49856973,0.00012578,2]
[337664480,1725931838557,-6526.09,0.00012578,2]
[337664481,1725931838567,-5670.3,0.00012578,2]
[337664482,1725931838577,-3677.49,0.00012578,2]
[337664483,1725931838587,-7968.22,0.00012578,2]
[337664484,1725931838599,-6426.51,0.00012578,2]
[337664485,1725931838609,-1753.89,0.00012578,2]
[337664486,1725931838618,-1506.27,0.00012578,2]
[337664487,1725931838628,-8530.78,0.00012578,2]
[337664488,1725931838638,-6641.85,0.00012578,2]
[337664489,1725931838648,-4492.19,0.00012578,2]
[337664490,1725931838658,-2875.68,0.00012578,2]
[337664491,1725931838668,-6972.35,0.00012578,2]
[337664492,1725931838678,-500.0,0.00012578,2]
[337664494,1725931838687,-5935.01,0.00012578,2]
[337664496,1725931838697,-500.0,0.00012578,2]
[337664498,1725931838707,-2508.9,0.00012578,2]
[337664500,1725931838716,-20911.3,0.00012578,2]
[337664502,1725931838726,-5953.38,0.00012578,2]
[337664504,1725931838737,-4159.86,0.00012578,2]
[337664506,1725931838747,-6107.03,0.00012578,2]
[337664508,1725931838757,-8547.75,0.00012578,2]
[337664510,1725931838766,-7869.7,0.00012578,2]
[337664512,1725931838776,-8970.72,0.00012578,2]
[337664514,1725931838787,-3393.95,0.00012578,2]
[337664516,1725931838797,-6233.7,0.00012578,2]
[337664518,1725931838806,-500.0,0.00012578,2]
[337664520,1725931838816,-3314.12,0.00012578,2]
[337664522,1725931838826,-1429.26,0.00012578,2]
[337664524,1725931838836,-8696.66,0.00012578,2]
[337664526,1725931838846,-1779.7,0.00012578,2]
[337664528,1725931838856,-13392.08,0.00012578,2]
[337664530,1725931838866,-2358.69,0.00012578,2]
[337664532,1725931838876,-2276.05,0.00012578,2]
[337664534,1725931838886,-513.88,0.00012578,2]
[337664536,1725931838896,-2871.39,0.00012578,2]
[337664538,1725931838906,-11495.3286,0.00012579,2]
[337664540,1725931838916,-189017.7496,0.00012579,2]
[337664542,1725931838925,-266.00194282,0.00012579,2]
[337664544,1725931838935,-13477.34,0.00012579,2]
[337664546,1725931838945,-500.0,0.00012579,2]
[337664548,1725931838955,-3178.96,0.00012579,2]
[337664550,1725931838964,-1367.85,0.00012579,2]
[337664552,1725931838975,-5478.99,0.00012579,2]
[337664554,1725931838984,-8134.15,0.00012579,2]
[337664555,1725931838994,-4389.8,0.00012579,2]
[337664558,1725931839003,-15003.9,0.00012579,2]
[337664559,1725931839013,-8047.01,0.00012579,2]
[337664562,1725931839023,-4973.57,0.00012579,2]
[337664563,1725931839032,-29671.66,0.00012579,2]
[337664565,1725931839042,-59932.84776646,0.00012579,2]
[337664567,1725931839054,-5506.63080696,0.00012579,2]
[337664632,1725931840316,-19659.18142658,0.00012579,2]
[337664633,1725931840325,-5763.75,0.00012579,2]
[337664634,1725931840336,-167.90400355,0.0001258,2]
[337664635,1725931840346,-150.0,0.00012584,2]
[337664636,1725931840355,-182.224,0.00012584,2]
[337664637,1725931840364,-150.0,0.00012594,2]
[337664638,1725931840374,-150.0,0.00012597,2]
[337664639,1725931840383,-959.76,0.00012599,2]
[337664640,1725931840394,-4228.35,0.00012599,2]
[337664641,1725931840403,-2868.43,0.00012599,2]
[337664642,1725931840413,-500.0,0.00012599,2]
[337664643,1725931840422,-88.67382604,0.00012599,2]
[337664644,1725931840462,-411.32617396,0.00012599,2]
[337664645,1725931840472,-1511.42,0.00012599,2]
[337664646,1725931840483,-500.0,0.00012599,2]
[337664647,1725931840493,-500.0,0.00012599,2]
[337664648,1725931840505,-4454.77,0.00012599,2]
[337664649,1725931840516,-500.0,0.00012599,2]
[337664650,1725931840526,-500.0,0.00012599,2]
[337664651,1725931840538,-3381.24,0.00012599,2]
[337664652,1725931840549,-3349.3,0.00012599,2]
[337664653,1725931840559,-614.93135951,0.00012599,2]
[337664654,1725931840570,-500.0,0.00012599,2]
[337664655,1725931840581,-500.0,0.00012599,2]
[337664656,1725931840593,-1361.9,0.00012599,2]
[337664657,1725931840603,-500.0,0.00012599,2]
[337664658,1725931840614,-592.43,0.00012599,2]
[337664659,1725931840625,-500.0,0.00012599,2]
[337664660,1725931840635,-3184.68,0.00012599,2]
[337664661,1725931840645,-2427.9,0.00012599,2]
[337664662,1725931840656,-500.0,0.00012599,2]
[337664663,1725931840666,-500.0,0.00012599,2]
[337664664,1725931840677,-3511.33,0.00012599,2]
[337664665,1725931840688,-5713.73,0.00012599,2]
[337664666,1725931840697,-500.0,0.00012599,2]
[337664667,1725931840708,-1812.87,0.00012599,2]
[337664668,1725931840717,-500.0,0.00012599,2]
[337664669,1725931840727,-500.0,0.00012599,2]
[337664670,1725931840737,-500.0,0.00012599,2]
[337664672,1725931840746,-500.0,0.00012599,2]
[337664674,1725931840757,-500.0,0.00012599,2]
[337664676,1725931840767,-500.0,0.00012599,2]
[337664677,1725931840777,-2941.45,0.00012599,2]
[337664678,1725931840788,-4115.02,0.00012599,2]
[337664679,1725931840802,-500.0,0.00012599,2]
[337664680,1725931840812,-5188.63,0.00012599,2]
[337664681,1725931840822,-500.0,0.00012599,2]
[337664682,1725931840832,-500.0,0.00012599,2]
[337664683,1725931840842,-500.0,0.00012599,2]
[337664684,1725931840854,-500.0,0.00012599,2]
[337664685,1725931840864,-503.07265322,0.00012599,2]
[337664686,1725931840874,-500.0,0.00012599,2]
[337664687,1725931840885,-500.0,0.00012599,2]
[337664688,1725931840895,-5166.24,0.00012599,2]
[337664689,1725931840905,-500.0,0.00012599,2]
[337664690,1725931840915,-500.0,0.00012599,2]
[337664691,1725931840925,-2551.5,0.00012599,2]
[337664692,1725931840936,-500.0,0.00012599,2]
[337664693,1725931840945,-2409.9,0.00012599,2]
[337664694,1725931840955,-500.0,0.00012599,2]
[337664695,1725931840965,-2788.42,0.00012599,2]
[337664696,1725931840975,-500.0,0.00012599,2]
[337664697,1725931840986,-501.97545079,0.00012599,2]
[337664698,1725931840996,-656.53,0.00012599,2]
[337664699,1725931841005,-500.87210123,0.00012599,2]
[337664700,1725931841015,-500.59687803,0.00012599,2]
[337664701,1725931841025,-509.87118414,0.00012599,2]
[337664702,1725931841035,-3649.03795568,0.00012599,2]
[337664703,1725931841050,-1439.07083368,0.00012599,2]
[337664704,1725931841061,-816.44121064,0.00012599,2]
[337664705,1725931841071,-144.8308275,0.00012599,2]
[337664706,1725931841083,-358.34173959,0.00012599,2]
[337664707,1725931841094,-500.77093893,0.00012599,2]
[337664708,1725931841104,-166.13477075,0.00012599,2]
[337664709,1725931841126,-335.76010392,0.00012599,2]
[337664710,1725931841136,-1064.09876173,0.00012599,2]
[337664712,1725931843320,-596.40541964,0.00012164,2]
[337664713,1725931843332,-3298.37,0.00012579,2]
[337664714,1725931843343,-17550.36123827,0.00012599,2]
[337664715,1725931843354,-500.0,0.00012599,2]
[337664716,1725931843365,-4231.56,0.00012599,2]
[337664717,1725931843376,-500.0,0.00012599,2]
[337664718,1725931843386,-18011.91,0.00012599,2]
[337664719,1725931843397,-589.46,0.00012599,2]
[337664720,1725931843408,-1991.21,0.00012599,2]
[337664721,1725931843419,-174.981722,0.00012599,2]
[337664722,1725931843430,-500.0,0.00012599,2]
[337664723,1725931843441,-500.0,0.00012599,2]
[337664724,1725931843452,-174.981722,0.00012599,2]
[337664725,1725931843464,-11539.03,0.00012599,2]
[337664726,1725931843476,-151.0,0.00012599,2]
[337664727,1725931843486,-309.51729845,0.00012599,2]
[337664728,1725931843497,-151.0,0.00012599,2]